Cogmind - Beta 16 @@@ ROGUE MODE // 2025.12.01 @ 18:42:07 Player: GLC Result: Destroyed by G-34 Mercenary with Small Laser Performance ------------- Evolutions (0) 0 Regions Visited (1) 200 Robots Destroyed (21) 105 Value Destroyed (243) 243 Prototype IDs (0) 0 Alien Tech Used (0) 0 Bonus (0) 0 TOTAL SCORE: 548 Bonus ------- None Cogmind --------- Core Integrity 0/250 Matter 300/300 Energy 100/100 System Corruption 0% Temperature Cool (6) Movement Core (350) Ox6 Location -10/Materials Parts ------- > --- POWER (1) -------- (None) > --- PROPULSION (2) --- (None) > --- UTILITY (2) ------ Large Storage Unit Seismic Detector > --- WEAPON (2) ------- (None) > --- INVENTORY (15) --- Light Ion Engine Light Ion Engine Light Ion Engine Wheel Wheel Wheel Wheel Wheel Improved Heat Sink Peak State ------------ > --- POWER ------------ Light Nuclear Core > --- PROPULSION ------- Wheel Wheel > --- UTILITY ---------- Large Storage Unit Seismic Detector > --- WEAPON ----------- Assault Rifle Light Assault Rifle > --- INVENTORY -------- Ion Engine Light Ion Engine Light Ion Engine Wheel Wheel Wheel Improved Heat Sink Light Assault Rifle [Rating: 10] Favorites ----------- Power Ion Engine Engine Ion Engine Power Core Light Nuclear Core Propulsion Wheel Wheel Wheel Utility Seismic Detector Device Seismic Detector Storage Large Storage Unit Weapon Light Assault Rifle Ballistic Gun Light Assault Rifle Build | -11 -10 ------- Run | Yrd Mat Slots Evolved . | . . Power . | . . Propulsion . | . . Utility . | . . Weapon . | . . Parts Attached 13 | 6 7 Power 3 | 1 2 Engine 2 | 1 1 Core 1 | . 1 Reactor . | . . Propulsion 5 | 2 3 Treads . | . . Leg . | . . Wheel 5 | 2 3 Hover . | . . Flight . | . . Utility 2 | 1 1 Device 1 | 1 . Storage 1 | . 1 Processor . | . . Hackware . | . . Protection . | . . Artifact . | . . Weapon 3 | 2 1 Energy Gun . | . . Energy Cannon . | . . Ballistic Gun 3 | 2 1 Ballistic Cannon . | . . Launcher . | . . Special Weapon . | . . Impact Weapon . | . . Slashing Weapon . | . . Piercing Weapon . | . . Special Melee Weapon . | . . Unidentified Prototypes . | . . Parts Lost 7 | . 7 Power 2 | . 2 Propulsion 2 | . 2 Utility . | . . Weapon 3 | . 3 Highest Loss Streak 5 | . 5 To Critical Strikes . | . . Average Backups 5 | 2 6 Power 1 | . 1 Propulsion 3 | . 3 Utility . | . . Weapon . | . . Tool/Special . | . . Unused Backups 8 | . 8 Power 4 | . 4 Propulsion 3 | . 3 Utility 1 | . 1 Weapon . | . . Tool/Special . | . . Average Slot Usage (%) 87 | . 87 Engine 8 | . 8 Core 4 | . 4 Wheel 26 | . 26 Device 14 | . 14 Storage 8 | . 8 Ballistic Gun 23 | . 23 Peak Build Rating 10 | 6 10 Average Rating 6 | 5 7 On Entrance 3 | . 6 Avg Prop Armor Cover (%) . | . . Naked Turns . | . . Heaviest Build 29 | 7 29 Greatest Support 20 | 20 20 Greatest Overweight (x) 6 | . 6 Average Overweight (x) . | . . Largest Inventory Capacity 15 | 5 15 Average Capacity 10 | 5 11 Most Carried 9 | 5 9 Average Carried 5 | 2 6 Final Capacity 15 | 5 15 Final Carried 9 | 5 9 Class Distribution -------------------- 63% | Mutant 36% | Scavenger-Mutant Dominant Class ---------------- Mutant | -10/Materials Resources | -11 -10 ----------- Run | Yrd Mat Matter Collected 525 | 340 185 Remotely . | . . Salvage Created 608 | 216 392 Parts 45 | 19 26 Haulers Intercepted . | . . Recyclers Shooed . | . . Parts Field Recycled . | . . Retrieved Matter . | . . Parts Self-Destructed . | . . Prevented . | . . Parts Restored . | . . Kills | -11 -10 ------- Run | Yrd Mat Combat Hostiles Destroyed 6 | . 6 Guns 6 | . 6 Classes Destroyed 6 | 3 3 Worker 6 | 2 4 Tunneler 5 | 5 . Recycler 2 | 1 1 Watcher 2 | . 2 Swarmer 3 | . 3 Grunt 3 | . 3 Best Kill Streak 5 | 5 4 Combat Bots Only 3 | . 3 Max Kills in Single Turn 2 | 2 1 Gunslinging . | . . Exploded . | . . Melee . | . . Uniques/NPCs Destroyed . | . . Combat | -11 -10 -------- Run | Yrd Mat Hostile Shots Fired 62 | . 62 Missed 13 | . 13 Hits 49 | . 49 Projectile 49 | . 49 Critical Strikes 3 | . 3 Damage Taken 738 | . 738 Core 250 | . 250 Absorbed by Shields . | . . Core Remaining (%) 100 | 100 . Volleys Fired 94 | 20 74 Largest 2 | 2 2 Hottest 40 | 40 40 Shots Fired 140 | 40 100 Gun 140 | 40 100 Cannon . | . . Launcher . | . . Special . | . . Kinetic 140 | 40 100 Thermal . | . . Explosive . | . . Electromagnetic . | . . Robot Hit Streak 13 | 13 9 Robot Miss Streak 5 | 2 5 Penetration Max . | . . Secondary Targets 2 | . 2 Max Gunslinging Chain 1 | . 1 Shots Hit Robots 92 | 29 63 Core Hits 41 | 14 27 Critical Kills . | . . Critical Parts Destroyed . | . . Critical Strikes . | . . Melee Attacks . | . . Impact . | . . Slashing . | . . Piercing . | . . Sneak Attacks . | . . Combat Hostiles . | . . Follow-up Attacks . | . . Damage Inflicted 877 | 298 579 Guns 864 | 298 566 Cannons . | . . Explosions . | . . Melee . | . . Ramming 13 | . 13 Kinetic 864 | 298 566 Thermal . | . . Explosive . | . . Electromagnetic . | . . Impact . | . . Slashing . | . . Piercing . | . . Highest Corruption . | . . Average Corruption . | . . Corruption Purged . | . . Corruption Blocked . | . . Overload Shots . | . . Overflow Damage . | . . Projectiles . | . . Explosions . | . . Melee . | . . Knockbacks 1 | . 1 Impact 1 | . 1 Kinetic . | . . Secondary . | . . Self-Inflicted Damage 6 | . 6 Shots . | . . Rammed 2 | . 2 Targets Rammed 2 | . 2 Kicked . | . . Crushed . | . . Highest Temperature 34 | . 34 Average Temperature 8 | . 8 Received Heat Transfer 354 | . 354 Siege Activations . | . . Martial Activations . | . . Shielding Activations . | . . Robots Disrupted . | . . Combat Hostiles . | . . Robots Corrupted . | . . Combat Hostiles . | . . Parts Fried . | . . Impact Corruptions . | . . Robots Melted . | . . Combat Hostiles . | . . Parts Melted . | . . Heat Transferred . | . . Parts Sabotaged . | . . Parts Stolen . | . . Parts Stripped . | . . Power Chain Reactions . | . . Alert | -11 -10 ------- Run | Yrd Mat Maximum Alert Level . | . . Low Security (%) 100 | 100 100 Level 1 . | . . Level 2 . | . . Level 3 . | . . Level 4 . | . . Level 5 . | . . High Security . | . . Max Security . | . . Peak Influence 70 | 10 70 Initial . | . . Average 8 | 2 10 Influence Increases 244 | 40 204 Destroy 0b10 Robot/C 120 | . 120 Destroy 0b10 Robot/NC 75 | 40 35 Destroy Leader 34 | . 34 Partial Spotted 15 | . 15 Influence Decreases 232 | 40 192 Time Decay 202 | 40 162 Lost Part 30 | . 30 Squads Dispatched . | . . Investigation . | . . Extermination . | . . Reinforcement . | . . Assault . | . . Garrison . | . . Intercept . | . . Searches Triggered . | . . Construction Impeded . | . . Haulers Reinforced . | . . Active Scanning Responses . | . . Cargo Convoy Interrupts . | . . Stealth | -11 -10 --------- Run | Yrd Mat Distress Signals . | . . Communications Jammed . | . . Distress Signals . | . . Times Spotted 10 | . 10 Peak Tracking Total 3 | . 3 Tactical Retreats . | . . Traps | -11 -10 ------- Run | Yrd Mat Traps Triggered 3 | . 3 Indirectly . | . . Trap Hack Attempts . | . . Triggered . | . . Disarmed . | . . Reprogrammed . | . . Reused . | . . Traps Extracted . | . . Installed . | . . Triggered . | . . Machines | -11 -10 ---------- Run | Yrd Mat Machines Disabled . | . . Max in Single Turn . | . . Machines Repaired . | . . Machines Dismantled . | . . Machines Sabotaged . | . . Overloaded Fab Kills . | . . Hacking | -11 -10 --------- Run | Yrd Mat Machines Accessed 1 | . 1 Terminals 1 | . 1 Fabricators . | . . Repair Stations . | . . Recycling Units . | . . Scanalyzers . | . . Garrison Access . | . . Total Hacks 1 | . 1 Successful . | . . Failed 1 | . 1 Catastrophic . | . . Database Lockouts . | . . Manual . | . . Terminals 1 | . 1 Fabricators . | . . Repair Stations . | . . Recycling Units . | . . Scanalyzers . | . . Garrison Access . | . . Terminal Hacks . | . . Fabricator Hacks . | . . Repair Station Hacks . | . . Recycling Unit Hacks . | . . Scanalyzer . | . . Garrison Access Hacks . | . . Unauthorized Hacks . | . . Terminals . | . . Fabricators . | . . Repair Stations . | . . Recycling Units . | . . Scanalyzers . | . . Garrison Access . | . . Data Cores Recovered . | . . Used . | . . Hacking Detections . | . . Full Trace Events . | . . Feedback Events . | . . Feedback Blocked . | . . Robot Schematics Acquired . | . . Robots Built . | . . Authchips . | . . Time . | . . Total Robot Build Rating . | . . Part Schematics Acquired . | . . Parts Built . | . . Authchips . | . . Time . | . . Total Part Build Rating . | . . Part Studies Acquired . | . . Parts Repaired . | . . Time . | . . Parts Recycled . | . . Recycled Matter . | . . Retrieved Matter . | . . Retrieved Components . | . . Parts Scanalyzed . | . . Part Schematics Acquired . | . . Parts Damaged . | . . Bothacking | -11 -10 ------------ Run | Yrd Mat Used RIF Installer . | . . Robots Hacked . | . . Non-combat . | . . Combat . | . . Robot Hacks Applied . | . . Relay Couplers Released . | . . Fabnet Peak Effective % . | . . Robots Rewired . | . . Allies Hacked . | . . Hacks Repelled . | . . Allies | -11 -10 -------- Run | Yrd Mat Total Allies . | . . Largest Group . | . . Highest-Rated Group . | . . Highest-Rated Ally . | . . Total Orders . | . . Ally Attacks . | . . Total Damage . | . . Kills . | . . Allies Corrupted . | . . Allies Melted . | . . Intel | -11 -10 ------- Run | Yrd Mat Active Infowar (turns) 795 | 119 676 Seismic 795 | 119 676 Robot Analysis Total . | . . Derelict Logs Recovered . | . . Drone Launches . | . . Drone Recoveries . | . . Exploration | -11 -10 ------------- Run | Yrd Mat Turns Passed 861 | 185 676 Spaces Moved 630 | 144 486 Core 17 | 14 3 Treads . | . . Legs . | . . Wheels 613 | 130 483 Hover . | . . Flight . | . . Fastest Speed 50 | 50 80 Average Speed 87 | 77 90 Slowest Speed 350 | 80 350 Overloaded Moves . | . . Propulsion Burnouts . | . . Robots Hopped . | . . Potential Cave-ins . | . . Cave-ins Triggered . | . . Exploration Rate (%) 19 | 6 32 Regions Visited 1 Branch Regions . Pre-discovered Areas . | . . Known Exits Taken . | . . Unknown Exits Taken 1 | 1 . Scrap Searched . | . . Spaces Dug . | . . Terrain Destroyed . | . . Melee . | . . Projectile . | . . AOE . | . . Terrain Rammed . | . . Walls Destroyed . | . . Machines Disabled . | . . Actions | -11 -10 --------- Run | Yrd Mat Total 819 | 181 638 Wait 54 | 1 53 Move 629 | 143 486 Hop . | . . Pick Up 22 | 11 11 Fast Attach . | . . Attach 9 | 6 3 Detach . | . . Swap 5 | . 5 Drop 4 | . 4 Fire 94 | 20 74 Melee . | . . Ram 2 | . 2 Kick . | . . Crush . | . . Escape Stasis . | . . Rewire . | . . Trap . | . . Miscellaneous . | . . Route ------- -11/Scrapyard -10/Materials (discovered 2 exits: [*Mat] / [*Min]) History --------- Turn | Location | Event 32 | -11/Scrapyard | Discovered new exit (range 15) 186 | -11/Scrapyard | Entered Materials 301 | -10/Materials | Build established: Mutant 337 | -10/Materials | Discovered new exit (range 16) 364 | -10/Materials | Discovered new exit (range 16) 818 | -10/Materials | Build established: Scavenger-Mutant 835 | -10/Materials | Core integrity fell below 50% 855 | -10/Materials | Core integrity fell below 20% 862 | -10/Materials | Destroyed by G-34 Mercenary with Small Laser Last Messages --------------- R-06 Scavenger collects Corrupted Aluminum Leg. K-01 Serf cleans the Terminal. K-01 Serf destroyed. Acquired 24 matter. Acquired Wheel. K-01 Serf destroyed. Acquired 2 matter. R-06 Scavenger collects Lgt. Ion Engine. R-06 Scavenger collects Corrupted Wheel. Lgt. Assault Rifle destroyed. Critical hit (Burn: +37). Wheel destroyed. Ion Engine destroyed. Wheel destroyed. G-47 Trooper destroyed. K-01 Serf collects debris. Lgt. Assault Rifle destroyed. Slammed into K-01 Serf. Destabilizing: Core damaged (-7). Acquired 1 matter. Map ----- +----------------------------------------------------+ | | | | | | | | | | | | | | | | | | | | | | | | | | | | | | | ???????#############?????????????????????????????? | | ???????# #?????????????????????????????? | | ???????# #?????????????????????????????? | | ???????# " """""!%#?????????????????????????????? | | ???????# """"""""" #?????????????????????????????? | | ????#### """ """ #?????????????????????????????? | | ????# + #??????#########??????????????? | | ###?# # #??????# ???????????????? | | #?# ######+############# #??????????????????? | | #?# #???# + # #??????????????????? | | #?# ##### ## @g #??????????????????? | | ### % ## # #??????????????????? | | ### =## # #??????????????????? | | ### ##### !%## # #??????????????????? | | ### #???# ## # #??????????????????? | | ### #???# ## # #??????????????????? | | #???# %## # #??????????????????? | | #???# ############ +??????????????????? | | ##### #???# # ! ! #??# #??????????????????? | | ????# #???# + #??# #??????????????????? | | ????# #???# # #??# #??????????????????? | | ????# #???# #?#######??# #??????????????????? | | ????# #???# #?######???# #??????????????????? | | ????# #???# #? #???# #??????????????????? | | ????# #???# # """ #???# #??????????????????? | | ????# #???# # "R" #???? ???????????????????? | | ????+ #??## + " " #??????????????????????????? | | ????# #?### # #??????????????????????????? | | ????# #?# #% # #??????????????????????????? | | ????# #?### #?######??????????????????????????? | | ????# #?# # % #?#######?????????????????????????? | | ????# #?### # #?????????????????????????? | | ????# #???# # ! #?????????????????????????? | | ????# #???# + #?????????????????????????? | | ????# #???# #########?????????????????????????? | +----------------------------------------------------+ Best States ------------- Heat Dissipation 25 Energy Generation 14 Energy Capacity 250 Matter Stores 300 Matter Capacity 300 Sight Range 16 Terrain Scan Density 10 Evasion (%) 50 Item Schematics ----------------- None Robot Schematics ------------------ None Fabricated ------------ Nothing Repaired ---------- Nothing Studied --------- None Alien Tech Used ----------------- None Achievements -------------- None Challenges ------------ None Game ------ Seed SupersonicAdvancedNetwork Manual? 0 Play Time 00:11:41 Cumulative 9.1 hours Start 2025.12.01 @ 18:32:00 End 2025.12.01 @ 18:42:07 Sessions 1 Manual Loads 0 Difficulty Rogue Special Mode None Game No. 20 Rogue 20 Adventurer 0 Explorer 0 Win Type - Total 0 Types 0/0/0/0/0/0/0/0/0/0 Lore% 6 Gallery% 11 Achievement% 12 Wizard Run 0 Options --------- Layout 1 ASCII 0 Keyboard 0 Movement Mouse Keybinds 0 Fullscreen 1 Font 24/Smallcaps Map View 50x35 Zoom Use 0% Tactical HUD 0 Map Filters NONE Filters NONE Steam 1 RUN: ae13d583-c820-4a0c-8f54-40b3b53ad160